bitfinex/quotes_ETHUSD_20240610
["timestamp","ask_amount","ask_price","bid_price","bid_amount"]
[1717992197196,3.65477,3683.4,3682.5,1.35774]
[1717992197345,3.65477,3683.4,3682.7,1.35767]
[1717992197553,3.65477,3683.4,3682.8,35.0]
[1717992202682,3.65477,3683.4,3682.7,4.223137]
[1717992203090,3.65477,3683.4,3682.7,39.223137]
[1717992203271,0.796,3683.1,3682.7,36.35767]
[1717992203583,3.65477,3683.4,3682.7,36.35767]
[1717992203584,0.796,3683.3,3682.7,36.35767]
[1717992206488,0.796,3683.3,3682.7,1.35767]
[1717992206851,0.796,3683.3,3682.7,36.35767]
[1717992210087,0.796,3683.3,3682.7,1.35767]
[1717992211406,2.2701,3683.1,3682.4,1.3578]
[1717992215166,2.2701,3683.1,3682.4,36.3578]
[1717992215363,1.35759,3683.0,3682.4,36.3578]
[1717992215864,1.35759,3683.0,3682.4,1.3578]
[1717992218003,1.35759,3683.0,3682.3,35.796]
[1717992218311,1.35759,3683.0,3682.4,2.65030545]
[1717992221281,1.35759,3683.0,3682.3,0.796]
[1717992221781,1.35759,3683.0,3682.4,35.0]
[1717992225398,1.35759,3683.0,3682.3,0.796]
[1717992228345,1.35759,3683.0,3682.2,35.31258]
[1717992228503,1.35759,3683.0,3682.2,36.10858]
[1717992228838,1.35759,3683.0,3682.3,2.65030545]
[1717992231339,2.3683,3682.9,3682.3,2.65030545]
[1717992232241,1.35767,3682.8,3682.3,2.65030545]
[1717992232421,1.35767,3682.8,3682.2,0.31258]
[1717992236149,1.35767,3682.8,3682.3,35.0]
[1717992238263,1.35767,3682.8,3682.2,0.31258]
[1717992238545,1.35767,3682.8,3682.2,35.31258]
[1717992240210,1.35767,3682.8,3682.2,0.31258]
[1717992240416,1.35767,3682.8,3682.1,1.3579]
[1717992241565,1.35767,3682.8,3682.0,2.7]
[1717992241566,3.62202,3682.1,3682.0,2.7]
[1717992241764,3.62202,3682.1,3681.5,0.01796866]
[1717992242943,2.3929,3682.3,3681.5,3.83660866]
[1717992243253,2.3929,3682.3,3681.8,0.796]
[1717992243854,1.35781,3682.4,3681.8,0.796]
[1717992245351,1.35781,3682.4,3681.6,0.38366087]
[1717992245564,1.35781,3682.4,3681.8,0.796]
[1717992248955,2.3822,3682.6,3681.8,0.796]
[1717992249465,2.3822,3682.6,3681.8,3.44630545]
[1717992250232,2.3822,3682.6,3681.8,0.796]
[1717992256871,2.3822,3682.6,3681.9,2.3336]
[1717992260620,3.73996,3682.6,3681.9,2.3336]
[1717992265406,1.35776,3682.6,3681.9,2.3336]
[1717992265810,3.0,3683.2,3681.9,2.3336]
[1717992265811,1.35763,3682.9,3681.9,2.3336]
[1717992266108,1.35763,3682.9,3682.3,2.4638]
[1717992270207,0.796,3683.1,3682.3,2.4638]
[1717992278282,1.35758,3683.0,3682.3,2.4638]
[1717992294649,1.33857195,3683.0,3682.3,2.4638]
[1717992295030,1.35769,3682.8,3682.0,2.3604]
[1717992295243,1.35774,3682.6,3682.0,2.3604]
[1717992295455,1.35774,3682.6,3681.9,1.35798]
[1717992295815,1.35782,3682.4,3681.8,2.3604]
[1717992298750,1.35782,3682.4,3681.6,3.62159]
[1717992299536,0.796,3682.3,3681.6,1.35809]
[1717992300622,1.35789,3682.2,3681.6,1.35809]
[1717992301516,1.35789,3682.2,3681.6,1.63224317]
[1717992301848,1.35789,3682.2,3681.6,4.03404317]
[1717992303155,0.796,3681.7,3681.5,0.01796866]
[1717992303656,0.796,3681.9,3681.5,0.01796866]
[1717992304214,1.35803,3681.8,3681.5,0.01796866]
[1717992308981,0.796,3681.7,3681.5,0.01796866]
[1717992309372,1.3581,3681.6,3681.5,0.01796866]
[1717992310529,3.7096,3681.6,3681.5,0.01796866]
[1717992310880,3.7096,3681.6,3681.2,2.30552297]
[1717992312896,1.3581,3681.6,3681.2,2.30552297]
[1717992313479,1.3581,3681.6,3681.2,4.63772297]
[1717992321852,1.3581,3681.6,3681.2,2.30552297]
[1717992330866,2.3631,3681.5,3681.2,2.30552297]
[1717992332330,1.35817,3681.4,3681.2,2.30552297]
[1717992332534,1.809897,3681.4,3681.2,2.30552297]
[1717992332762,0.0642405,3681.3,3681.2,2.30552297]
[1717992333266,1.809897,3681.4,3681.2,2.30552297]
[1717992333557,1.35817,3681.4,3681.2,2.30552297]
[1717992336299,0.06422143,3681.3,3681.2,2.30552297]
[1717992336595,1.35817,3681.4,3681.2,2.30552297]
[1717992338458,1.35807,3681.7,3681.2,2.30552297]
[1717992338658,2.15407,3681.7,3681.2,2.30552297]
[1717992339599,1.35814,3681.5,3681.2,2.30552297]
[1717992342068,2.15414,3681.5,3681.2,2.30552297]
[1717992342419,1.35821,3681.3,3681.2,2.30552297]
[1717992342565,4.51561,3681.3,3681.2,2.30552297]
[1717992342772,4.5798219,3681.3,3681.2,2.30552297]
[1717992342999,4.99331177,3681.3,3681.2,2.30552297]
[1717992348809,4.99331177,3681.3,3681.2,0.45552297]
[1717992349630,5.54331177,3681.3,3681.2,0.45552297]
[1717992349930,4.99331177,3681.3,3681.2,0.45552297]
[1717992350497,5.54331177,3681.3,3681.2,0.45552297]
[1717992351107,4.19731177,3681.3,3681.2,0.45552297]
[1717992351444,4.99331177,3681.3,3681.2,0.45552297]
[1717992351732,5.54331177,3681.3,3681.2,0.45552297]
[1717992356031,1.83591177,3681.3,3681.2,0.45552297]
[1717992356237,1.4224219,3681.3,3681.2,0.45552297]
[1717992357223,0.0642119,3681.3,3681.2,0.45552297]
[1717992357604,1.63968636,3681.6,3681.2,0.45552297]
[1717992358108,0.06370587,3681.5,3681.2,0.45552297]
[1717992358439,0.06370587,3681.5,3681.2,2.75612297]
[1717992359839,0.06370587,3681.5,3681.2,3.24717127]
[1717992360139,1.35799,3681.9,3681.2,3.24717127]
[1717992360580,0.06381575,3681.8,3681.2,4.60542127]
[1717992360702,0.06381575,3681.8,3681.5,0.796]
[1717992360909,8.63788,3682.2,3681.5,0.796]
[1717992361108,0.06393443,3682.1,3681.5,1.33614213]
[1717992361415,8.63788,3682.2,3681.6,2.3006]
[1717992361770,0.06383107,3682.1,3681.6,2.3006]
[1717992364714,1.35788,3682.2,3681.6,2.3006]
[1717992365018,1.35788,3682.2,3681.6,4.95090545]
[1717992366310,1.35788,3682.2,3681.6,2.3006]
[1717992366645,0.06385201,3682.1,3681.6,2.3006]
[1717992367317,2.15388,3682.2,3681.6,2.3006]
[1717992368104,1.35799,3681.9,3681.2,4.10787297]
[1717992368315,0.06428588,3681.8,3681.2,2.74962297]
[1717992368515,0.86028588,3681.8,3681.2,2.74962297]
[1717992368922,0.796,3681.8,3681.2,2.74962297]
[1717992370541,1.35808,3681.7,3681.2,2.74962297]
[1717992370732,1.35808,3681.7,3681.2,0.45552297]
[1717992371044,1.35818,3681.4,3681.2,0.45552297]
[1717992371547,0.06388405,3681.3,3681.2,0.45552297]
[1717992372834,0.61388405,3681.3,3681.2,0.45552297]
[1717992375745,1.40988405,3681.3,3681.2,0.45552297]
[1717992378327,0.06388405,3681.3,3681.2,0.45552297]
[1717992382126,0.85988405,3681.3,3681.2,0.45552297]
[1717992382329,1.40985127,3681.3,3681.2,0.45552297]
[1717992383442,1.95985127,3681.3,3681.2,0.45552297]
[1717992389671,1.16385127,3681.3,3681.2,0.45552297]
[1717992389979,1.95985127,3681.3,3681.2,0.45552297]
[1717992391258,0.06388405,3681.3,3681.2,0.45552297]
[1717992397349,0.796,3681.6,3681.2,0.45552297]
[1717992397547,0.05983849,3681.5,3681.2,0.45552297]
[1717992405403,1.35817,3681.4,3681.2,0.45552297]
[1717992405768,0.05987242,3681.3,3681.2,0.45552297]
[1717992422384,0.51967666,3681.3,3681.2,0.45552297]
[1717992422787,4.24967666,3681.3,3681.2,0.45552297]
[1717992422993,7.24967666,3681.3,3681.2,0.45552297]
[1717992423292,7.83673729,3681.3,3681.2,0.45552297]
[1717992423601,9.73978435,3681.3,3681.2,0.45552297]
[1717992423925,1.3514566,3681.3,3681.2,0.45552297]
[1717992424128,0.34165236,3681.3,3681.2,0.45552297]
[1717992424491,0.05987242,3681.3,3681.2,0.45552297]
[1717992425333,0.85587242,3681.3,3681.2,0.45552297]
[1717992425542,0.05987242,3681.3,3681.2,0.45552297]
[1717992425904,0.796,3681.6,3681.2,0.45552297]
[1717992426100,0.05581677,3681.3,3681.2,0.45552297]
[1717992426610,2.15414,3681.6,3681.2,0.45552297]
[1717992426804,0.05581677,3681.3,3681.2,0.45552297]
[1717992427004,2.15414,3681.6,3681.2,0.45552297]
[1717992427204,0.05589591,3681.5,3681.2,0.45552297]
[1717992435448,0.05589591,3681.5,3681.3,2.284]
[1717992438367,0.05589591,3681.5,3681.2,0.45552297]
[1717992438872,1.35817,3681.4,3681.2,0.45552297]
[1717992439268,0.05570874,3681.3,3681.2,0.45552297]
[1717992440271,0.27669661,3681.3,3681.2,0.45552297]
[1717992442975,0.05570874,3681.3,3681.2,0.45552297]
[1717992450353,0.05570874,3681.3,3681.2,2.93992297]
[1717992451760,1.63986235,3681.7,3681.2,2.93992297]
[1717992451761,1.35807,3681.7,3681.2,2.93992297]
[1717992452156,0.05589098,3681.6,3681.2,2.93992297]
[1717992466458,2.15407,3681.7,3681.2,2.93992297]
[1717992466758,0.05592595,3681.6,3681.2,2.93992297]
[1717992479718,0.05592595,3681.6,3681.3,2.2609]
[1717992480016,1.35797,3682.0,3681.3,2.2609]
[1717992480223,0.05411626,3681.9,3681.3,1.3582]
[1717992480408,3.0,3682.2,3681.4,2.2609]
[1717992480580,0.85019538,3682.1,3681.4,2.2609]
[1717992481714,0.05419538,3682.1,3681.4,2.2609]
[1717992481904,0.85019538,3682.1,3681.4,2.2609]
[1717992482102,0.85019538,3682.1,3681.4,2.79094483]
[1717992482304,0.05419538,3682.1,3681.9,2.4818]
[1717992482491,0.05419538,3682.1,3682.0,4.69006348]
[1717992482814,0.05485478,3682.1,3682.0,3.83975]
[1717992483028,7.28,3682.3,3682.0,4.223725]
[1717992483182,0.05486127,3682.2,3682.0,4.223725]
[1717992483378,7.28,3682.3,3682.0,4.223725]
[1717992483581,0.05487583,3682.2,3682.0,4.223725]
[1717992483900,0.796,3682.6,3682.1,0.5019725]
[1717992484095,0.796,3682.6,3682.0,3.83975]
[1717992484313,0.05499444,3682.5,3682.0,3.83975]
[1717992486195,0.796,3682.7,3682.0,3.83975]
[1717992486522,0.0548457,3682.6,3682.0,3.83975]
[1717992486687,0.0548457,3682.6,3682.1,0.463575]
[1717992491628,0.05412283,3682.5,3682.1,0.463575]
[1717992491801,0.796,3682.8,3682.1,0.463575]
[1717992492212,0.0542019,3682.7,3682.1,0.463575]
[1717992495687,0.796,3682.8,3682.1,0.463575]
[1717992496119,0.0542019,3682.7,3682.1,0.463575]
[1717992496529,0.796,3682.8,3682.1,0.463575]
[1717992496736,0.05416237,3682.6,3682.1,0.463575]
[1717992496952,0.0542019,3682.7,3682.1,0.463575]
[1717992497108,0.796,3682.8,3682.1,0.463575]
[1717992497109,0.05433917,3682.5,3682.1,0.463575]
[1717992497442,0.796,3682.8,3682.3,2.4031]
[1717992497744,0.05441823,3682.7,3682.3,2.4031]
[1717992498239,0.0543787,3682.6,3682.3,2.4031]
[1717992498536,0.796,3682.8,3682.3,2.4031]
[1717992498998,0.05441823,3682.7,3682.3,2.4031]
[1717992499197,0.796,3682.8,3682.3,2.4031]
[1717992499441,0.05441823,3682.7,3682.3,2.4031]
[1717992499738,2.15369,3682.8,3682.3,2.4031]
[1717992500034,0.05441823,3682.7,3682.3,2.4031]
[1717992500334,2.15369,3682.8,3682.3,2.4031]
[1717992500537,0.05440122,3682.6,3682.3,2.4031]
[1717992500750,0.05444076,3682.7,3682.3,2.4031]
[1717992500952,0.0542191,3682.5,3682.3,2.4031]
[1717992501240,0.05417956,3682.4,3682.3,2.4031]
[1717992501442,2.15369,3682.8,3682.3,2.4031]
[1717992501745,0.05429818,3682.7,3682.3,2.4031]
[1717992501944,0.05429818,3682.7,3682.0,1.35795]
[1717992502126,3.0,3683.1,3682.0,3.85765]
[1717992502127,2.15375,3682.6,3682.0,3.85765]
[1717992502515,0.0542191,3682.5,3682.0,2.4997]
[1717992502818,0.796,3682.2,3681.7,3.85776]
[1717992503016,0.05433455,3682.1,3681.7,3.85776]
[1717992503210,0.05433455,3682.1,3681.7,2.4997]
[1717992503447,0.796,3682.2,3681.7,2.4997]
[1717992504429,2.15381,3682.4,3681.7,2.4997]
[1717992504745,0.05441364,3682.3,3681.7,3.01809148]
[1717992505200,2.15381,3682.4,3681.7,3.01809148]
[1717992505603,0.05441364,3682.3,3681.7,3.01809148]
[1717992505932,2.15381,3682.4,3681.7,3.01809148]
[1717992506318,0.05441364,3682.3,3681.7,3.01809148]
[1717992506720,2.15381,3682.4,3681.7,3.01809148]
[1717992507112,0.05441364,3682.3,3681.7,3.01809148]
[1717992507461,2.15381,3682.4,3681.7,3.01809148]
[1717992509006,2.15381,3682.4,3681.7,0.51839148]
[1717992509308,2.15381,3682.4,3681.2,0.45552297]
[1717992509309,0.796,3682.0,3681.3,1.3582]
[1717992509504,1.35792,3682.1,3681.4,2.4383]
[1717992509814,0.05423457,3682.0,3681.4,2.4383]
[1717992510014,1.35792,3682.1,3681.5,0.5048023]
[1717992513431,0.0541964,3682.0,3681.5,0.5048023]
[1717992523175,0.0541964,3682.0,3681.6,2.3918]
[1717992523585,2.15381,3682.4,3681.6,2.3918]
[1717992523748,0.05337637,3681.9,3681.6,2.89687123]
[1717992524080,2.15381,3682.4,3681.6,2.89687123]
[1717992524590,0.05353774,3682.3,3681.6,2.89687123]
[1717992546114,1.35788,3682.2,3681.6,2.89687123]
[1717992553934,1.35788,3682.2,3681.7,2.2573]
[1717992554133,1.35788,3682.2,3681.7,2.94174424]
[1717992554717,1.35778,3682.5,3681.7,3.73774424]
[1717992554910,0.05333245,3682.4,3681.8,2.4929]
[1717992555433,0.05333245,3682.4,3681.9,0.796]
[1717992555635,0.05333245,3682.4,3682.2,2.3203]
[1717992555825,2.15356,3683.1,3682.3,0.447419]
[1717992556134,1.35756,3683.1,3682.4,0.796]
[1717992556333,1.35756,3683.1,3682.5,2.3203]
[1717992556531,0.05202708,3683.0,3682.5,2.3203]
[1717992563043,2.15344,3683.4,3682.5,2.3203]
[1717992563228,0.05217878,3682.9,3682.5,2.3203]
[1717992563432,2.15344,3683.4,3682.6,0.447414]
[1717992563810,0.05233685,3683.3,3682.6,0.447414]
[1717992564005,2.15344,3683.4,3682.6,0.447414]
[1717992564200,0.05229733,3683.2,3682.6,0.447414]
[1717992564417,2.15344,3683.4,3682.7,2.3759]
[1717992564666,0.05225782,3683.1,3682.7,2.3759]
[1717992564846,1.35744,3683.4,3682.8,0.4977044]
[1717992565025,0.0522183,3683.0,3682.7,2.3759]
[1717992565229,1.35744,3683.4,3682.7,2.3759]
[1717992568716,0.05253085,3683.3,3682.7,2.3759]
[1717992569025,1.35744,3683.4,3682.7,2.3759]
[1717992569227,2.15354,3683.2,3682.3,1.35783]
[1717992569551,0.796,3682.7,3682.2,2.4055]
[1717992569705,0.796,3682.5,3681.9,2.4055]
[1717992569911,1.35781,3682.4,3681.7,0.68444424]
[1717992570218,0.05237596,3682.3,3681.7,0.68444424]
[1717992570433,0.05237596,3682.3,3681.8,0.52440142]
[1717992571420,0.05237596,3682.3,3681.8,1.32040142]
[1717992571631,1.35781,3682.4,3681.8,1.32040142]
[1717992571842,0.05195251,3682.2,3681.8,1.32040142]
[1717992572033,2.15369,3682.8,3681.9,0.50839714]
[1717992572433,0.05226796,3682.7,3681.9,0.50839714]
[1717992573338,1.35774,3682.6,3681.9,0.50839714]
[1717992573672,0.0519234,3682.5,3681.9,0.50839714]
[1717992574750,1.35774,3682.6,3682.0,1.55583498]
[1717992574953,1.35774,3682.6,3682.1,2.3825]
[1717992577462,0.05159814,3682.5,3682.1,2.3825]
[1717992578040,1.35774,3682.6,3682.1,2.3825]
[1717992581742,1.35763,3682.9,3682.1,2.3825]
[1717992581947,1.35763,3682.9,3682.2,0.36868971]
[1717992582155,0.05171834,3682.8,3682.2,0.36868971]
[1717992582582,1.35763,3682.9,3682.2,0.36868971]
[1717992585393,0.05181325,3682.8,3682.2,0.36868971]
[1717992586053,1.35763,3682.9,3682.2,0.36868971]
[1717992586253,0.05177372,3682.7,3682.1,2.3825]
[1717992586604,1.35771,3682.7,3682.1,2.3825]
[1717992593387,0.05146885,3682.6,3682.1,2.3825]
[1717992593889,1.35771,3682.7,3682.1,2.3825]
[1717992596121,1.35757,3683.1,3682.5,0.796]
[1717992596420,1.35743,3683.5,3683.0,2.3656]
[1717992596582,1.35743,3683.5,3683.1,0.796]
[1717992597511,0.04619103,3683.4,3683.1,0.796]
[1717992599598,0.04619103,3683.4,3683.0,2.3656]
[1717992600821,1.35743,3683.5,3683.0,2.3656]
[1717992601021,1.35743,3683.5,3683.0,5.01590545]
[1717992602521,2.15329,3683.8,3683.0,5.01590545]
[1717992602922,0.0465641,3683.7,3683.0,5.01590545]
[1717992603229,2.15329,3683.8,3683.0,5.01590545]
[1717992603428,0.04652459,3683.6,3683.0,5.01590545]
[1717992603728,2.15329,3683.8,3683.1,0.71695255]
[1717992604133,0.0465641,3683.7,3683.1,0.71695255]
[1717992604533,1.35729,3683.8,3683.1,1.51295255]
[1717992604707,1.35729,3683.8,3683.2,0.7886478]
[1717992604905,0.0465641,3683.7,3683.2,0.7886478]
[1717992605393,1.35729,3683.8,3683.2,0.7886478]
[1717992605593,0.0465641,3683.7,3683.2,0.7886478]
[1717992605922,1.35729,3683.8,3683.3,2.3767]
[1717992606091,1.35729,3683.8,3683.4,0.39613478]
[1717992606291,0.0465641,3683.7,3683.4,0.39613478]
[1717992606524,1.35729,3683.8,3683.4,0.39613478]
[1717992607051,0.04652228,3683.7,3683.4,0.39613478]
[1717992607194,1.35729,3683.8,3683.4,0.39613478]
[1717992607534,0.04652228,3683.7,3683.5,0.35614826]
[1717992608038,1.35729,3683.8,3683.5,0.35614826]
[1717992608207,0.04648276,3683.6,3683.5,0.35614826]
[1717992608407,1.35729,3683.8,3683.5,0.35614826]
[1717992608637,0.04648276,3683.6,3683.5,0.35614826]
[1717992608843,1.35718,3684.1,3683.5,0.35614826]
[1717992609044,0.04648276,3683.6,3683.5,0.35614826]
[1717992609201,2.15318,3684.1,3683.5,0.35614826]
[1717992609397,0.04648276,3683.6,3683.3,2.3767]
[1717992609645,2.15318,3684.1,3683.3,2.3767]
[1717992609943,0.04644324,3683.5,3683.3,2.3767]
[1717992610118,2.15318,3684.1,3683.3,2.3767]
[1717992610304,0.04640372,3683.4,3683.3,2.3767]
[1717992610500,1.35718,3684.1,3683.3,3.48997]
[1717992610736,0.04640372,3683.4,3683.3,3.48997]
[1717992610918,1.35718,3684.1,3683.3,3.48997]
[1717992611421,0.04667581,3684.0,3683.3,3.48997]
[1717992614052,1.35727,3683.9,3683.3,0.796]
[1717992614260,4.6843063,3683.9,3683.1,1.35752]
[1717992614461,4.63767,3683.9,3683.1,1.35752]
[1717992614750,0.796,3683.7,3683.1,1.35752]
[1717992617262,0.796,3683.7,3682.9,2.3565]
[1717992617468,0.796,3683.3,3682.6,2.3432]
[1717992619884,2.3524,3683.4,3682.6,2.3432]
[1717992620070,0.04665944,3683.2,3682.6,2.3432]
[1717992620363,2.15343,3683.5,3682.6,2.3432]
[1717992620524,0.04661991,3683.1,3682.7,0.749696]
[1717992620721,0.796,3683.5,3682.9,1.3576]
[1717992620947,0.04658038,3683.0,3682.9,5.3432]
[1717992621151,1.35728,3683.9,3683.3,2.3432]
[1717992621561,0.04520165,3683.8,3683.3,2.3432]
[1717992621857,0.04520165,3683.8,3683.3,4.99350545]
[1717992624445,1.35728,3683.9,3683.3,4.99350545]
[1717992624644,0.04518786,3683.7,3683.3,2.3432]
[1717992624846,1.35728,3683.9,3683.3,2.3432]
[1717992625066,0.04514834,3683.6,3683.3,2.3432]
[1717992625254,1.35728,3683.9,3683.3,2.3432]
[1717992625444,1.35728,3683.9,3683.3,4.99350545]
[1717992626212,1.35728,3683.9,3683.1,1.35751]
[1717992626341,0.796,3683.8,3683.1,1.35751]
[1717992626540,0.84122737,3683.8,3683.1,1.35751]
[1717992626945,0.796,3683.8,3683.1,1.35751]
[1717992629660,0.0451733,3683.7,3683.1,1.35751]
[1717992630185,0.0451733,3683.7,3683.1,2.118011]
[1717992630478,0.796,3683.8,3683.1,2.118011]
[1717992631946,1.35728,3683.9,3683.2,2.3105]
[1717992632481,0.07324963,3683.8,3683.3,35.0]
[1717992632680,1.35728,3683.9,3683.4,2.65030545]
[1717992633342,1.35728,3683.9,3683.2,2.3105]
[1717992633562,0.07320861,3683.8,3683.2,2.3105]
[1717992634072,1.35728,3683.9,3683.2,2.3105]
[1717992637082,0.07320861,3683.8,3683.2,2.3105]
[1717992637282,1.35728,3683.9,3683.2,2.3105]
[1717992637470,1.35728,3683.9,3683.3,2.65030545]
[1717992639378,1.35728,3683.9,3683.1,2.118011]
[1717992639379,3.0739,3683.8,3683.1,2.118011]
[1717992639782,0.796,3683.6,3683.1,2.118011]
[1717992640157,3.0739,3683.8,3683.1,2.118011]
[1717992640693,1.35733,3683.7,3683.1,2.118011]
[1717992643067,0.796,3683.6,3683.1,0.760501]
[1717992643391,0.796,3683.6,3682.8,37.72290399]
[1717992643568,0.796,3683.6,3682.8,37.15365]
[1717992644263,1.35741,3683.5,3682.8,1.35765]
[1717992644678,0.796,3683.4,3682.7,0.56925399]
[1717992644909,0.86911725,3683.4,3682.7,0.56925399]
[1717992645058,1.35749,3683.3,3682.7,0.56925399]
[1717992645393,1.43052712,3683.3,3682.6,2.4114]
[1717992645596,1.43052712,3683.3,3682.6,4.03823489]
[1717992645800,1.35749,3683.3,3682.6,4.03823489]
[1717992646504,1.35749,3683.3,3682.6,1.62683489]
[1717992646505,2.3056,3683.2,3682.6,1.62683489]
[1717992646715,2.3056,3683.2,3682.4,2.72304399]
[1717992646909,0.07291323,3683.1,3682.4,2.72304399]
[1717992647207,3.1016,3683.2,3682.4,1.92704399]
[1717992647414,1.35756,3683.1,3682.4,1.35779]
[1717992647579,1.35756,3683.1,3682.4,2.8992344]
[1717992647784,0.07287446,3683.0,3682.4,2.8992344]
[1717992648112,1.35756,3683.1,3682.4,2.8992344]
[1717992648113,1.35756,3683.1,3682.4,1.5414444]
[1717992648322,1.35756,3683.1,3682.3,5.4114]
[1717992650489,1.35756,3683.1,3682.3,3.0]
[1717992650688,1.35756,3683.1,3682.2,0.796]
[1717992651984,1.35756,3683.1,3682.2,35.796]
[1717992652186,1.35756,3683.1,3682.3,3.0]
[1717992652510,1.35756,3683.1,3682.4,2.65030545]
[1717992654193,1.35756,3683.1,3682.2,0.796]
[1717992654392,3.1016,3683.2,3682.2,0.796]
[1717992654393,1.35762,3682.9,3682.2,0.796]
[1717992654589,1.35762,3682.9,3682.2,35.796]
[1717992654837,0.0728298,3682.8,3682.2,35.796]
[1717992655135,1.35762,3682.9,3682.3,2.65030545]
[1717992655542,1.35762,3682.9,3682.1,1.35791]
[1717992655749,0.07284395,3682.8,3682.1,39.35791]
[1717992656096,1.35762,3682.9,3682.1,39.35791]
[1717992661332,1.35762,3682.9,3682.1,36.35791]
[1717992661995,1.35762,3682.9,3682.1,39.00821545]
[1717992664410,2.409,3682.7,3682.1,4.00821545]
[1717992664729,0.06770133,3682.6,3682.1,1.35791]
[1717992665058,0.06770133,3682.6,3682.1,36.35791]
[1717992665268,2.409,3682.7,3682.1,36.35791]
[1717992665435,2.409,3682.7,3682.1,1.35791]
[1717992665758,0.06770133,3682.6,3682.1,1.35791]
[1717992666060,0.06770133,3682.6,3682.2,0.215391]
[1717992666355,2.409,3682.7,3682.2,0.215391]
[1717992667223,3.76672,3682.7,3682.0,35.0]
[1717992668147,3.76672,3682.7,3681.9,0.796]
[1717992668353,0.06771562,3682.6,3681.9,0.796]
[1717992668660,0.06771562,3682.6,3681.9,35.796]
[1717992668831,3.76672,3682.7,3681.9,35.796]
[1717992669038,3.76672,3682.7,3681.9,37.60492337]
[1717992671066,1.35778,3682.5,3681.9,36.80892337]
[1717992671769,1.35778,3682.5,3681.9,1.80892337]
[1717992671936,2.421,3682.4,3682.0,0.29338249]
[1717992672258,2.48857755,3682.4,3682.1,0.29338249]
[1717992672440,2.48857755,3682.4,3681.9,0.29338249]
[1717992672441,2.421,3682.4,3681.9,0.29338249]
[1717992672668,2.421,3682.4,3682.0,0.29338249]
[1717992673091,2.421,3682.4,3682.1,0.29338249]
[1717992673268,2.421,3682.4,3681.9,0.29338249]
[1717992673587,2.421,3682.4,3682.0,0.29338249]
[1717992673892,2.421,3682.4,3682.1,0.29338249]
[1717992674296,2.421,3682.4,3682.2,0.29338249]
[1717992674592,2.421,3682.4,3682.0,0.29338249]
[1717992674766,2.421,3682.4,3682.1,0.29338249]
[1717992674972,2.421,3682.4,3681.9,2.65030545]
[1717992674973,2.421,3682.4,3682.2,0.29338249]
[1717992675471,2.421,3682.4,3682.0,0.29338249]
[1717992675658,0.06706279,3682.3,3682.0,0.29338249]
[1717992675859,0.06706279,3682.3,3682.0,0.16514025]
[1717992676083,0.06706279,3682.3,3682.0,0.45852274]
[1717992676401,0.06706279,3682.3,3682.1,0.29338249]
[1717992677300,0.06706279,3682.3,3681.9,0.29338249]
[1717992677472,0.06706279,3682.3,3682.0,0.29338249]
[1717992677787,0.06706279,3682.3,3682.1,0.29338249]
[1717992677990,0.06706279,3682.3,3681.6,3.796]
[1717992677991,0.06706279,3682.3,3682.0,0.29338249]
[1717992678155,0.06706279,3682.3,3681.7,0.29338249]
[1717992678360,0.06706279,3682.3,3681.8,1.08108374]
[1717992678563,0.06706279,3682.3,3681.9,0.29338249]
[1717992678760,0.06706279,3682.3,3682.0,0.29338249]
[1717992679081,0.06706279,3682.3,3681.9,0.29338249]
[1717992679274,0.06706279,3682.3,3682.0,0.29338249]
[1717992679482,0.06706279,3682.3,3681.9,0.29338249]
[1717992679658,0.06706279,3682.3,3682.0,0.29338249]
[1717992679859,0.06706279,3682.3,3681.9,0.29338249]
[1717992680103,0.06706279,3682.3,3682.0,0.29338249]
[1717992680405,0.04912318,3682.3,3681.9,0.29338249]
[1717992680909,0.04912318,3682.3,3682.0,0.29338249]
[1717992681206,0.04912318,3682.3,3681.9,0.29338249]
[1717992681407,0.04912318,3682.3,3682.0,0.29338249]
[1717992681578,0.04912318,3682.3,3681.9,0.29338249]
[1717992682410,0.04912318,3682.3,3681.9,0.78109086]
[1717992683497,0.04912318,3682.3,3682.0,0.29338249]
[1717992683881,0.04912318,3682.3,3681.8,0.78770125]
[1717992683882,0.04912318,3682.3,3681.6,3.0]
[1717992684093,1.35785,3682.3,3681.6,3.0]
[1717992684410,0.8434933,3682.2,3681.5,1.35813]
[1717992684581,1.35793,3682.1,3681.5,2.1287207]
[1717992684975,0.04739025,3682.0,3681.5,2.1287207]
[1717992685202,1.35793,3682.1,3681.5,2.1287207]
[1717992685572,0.04739025,3682.0,3681.5,2.1287207]
[1717992689704,0.04739025,3682.0,3681.5,2.9247207]
[1717992690007,0.04739025,3682.0,3681.6,0.52477207]
[1717992690410,0.04739025,3682.0,3681.7,1.35806]
[1717992690636,0.04739025,3682.0,3681.7,3.63346]
[1717992690794,1.35782,3682.4,3681.7,3.63346]
[1717992690991,0.04735146,3681.9,3681.7,3.63346]
[1717992691197,1.35782,3682.4,3681.8,0.49542321]
[1717992693300,1.35782,3682.4,3681.7,1.35806]
[1717992693500,2.447,3682.3,3681.5,0.796]
[1717992694715,1.35788,3682.2,3681.5,0.796]
[1717992696622,1.35788,3682.2,3681.4,3.85026]
[1717992696823,1.35788,3682.2,3681.4,4.64626]
[1717992697026,1.35788,3682.2,3681.4,5.2133637]
[1717992701344,1.35788,3682.2,3681.4,2.7212637]
[1717992701641,2.15388,3682.2,3681.4,2.7212637]
[1717992701937,0.04734304,3682.1,3681.4,2.7212637]
[1717992702127,0.04734304,3682.1,3681.4,1.9252637]
[1717992702650,2.15388,3682.2,3681.4,1.9252637]
[1717992703042,2.3426,3681.9,3681.4,1.9252637]
[1717992703369,0.04612971,3681.8,3681.4,1.9252637]
[1717992705139,0.04612971,3681.8,3681.2,0.45552297]
[1717992705140,1.40417971,3681.8,3681.2,0.45552297]
[1717992705363,1.35805,3681.8,3681.2,0.45552297]
[1717992705676,0.04612981,3681.7,3681.2,0.45552297]
[1717992706386,0.796,3681.6,3681.2,0.45552297]
[1717992706547,0.84203029,3681.6,3681.2,0.45552297]
[1717992706946,0.04603029,3681.6,3681.2,0.45552297]